[Event "Titled Tuesday Blitz July 13 2021"]
[White "Sharapov, Evgeny"]
[Black "Rodrigues, Bruno Morado"]
[WhiteFideId "14103133"]
[BlackFideId "2115654"]
[WhiteElo "2367"]
[BlackElo "2040"]
[Result "1/2-1/2"]
[Round "10"]
[TimeControl "180+1"]
[Date "2021.07.13"]
[WhiteClock "0:00:10"]
[BlackClock "0:00:06"]

1. e4 {[%clk 0:02:59]}  c5 {[%clk 0:03:00]} 2. Nf3 {[%clk 0:02:59]}  Nc6 {[%clk 0:02:59]} 3. d4 {[%clk 0:02:58]}  cxd4 {[%clk 0:03:00]} 4. Nxd4 {[%clk 0:02:59]}  e5 {[%clk 0:03:01]} 5. Nb5 {[%clk 0:02:58]}  d6 {[%clk 0:03:01]} 6. N1c3 {[%clk 0:02:58]}  a6 {[%clk 0:03:02]} 7. Na3 {[%clk 0:02:57]}  b5 {[%clk 0:03:02]} 8. Nd5 {[%clk 0:02:57]}  Nce7 {[%clk 0:03:03]} 9. c4 {[%clk 0:02:54]}  Nxd5 {[%clk 0:03:03]} 10. cxd5 {[%clk 0:02:52]}  f5 {[%clk 0:03:03]} 11. exf5 {[%clk 0:02:49]}  Bxf5 {[%clk 0:03:03]} 12. Nc2 {[%clk 0:02:47]}  Nf6 {[%clk 0:03:01]} 13. Ne3 {[%clk 0:02:47]}  Bd7 {[%clk 0:03:01]} 14. Be2 {[%clk 0:02:46]}  Be7 {[%clk 0:03:01]} 15. O-O {[%clk 0:02:45]}  O-O {[%clk 0:03:02]} 16. b3 {[%clk 0:02:40]}  Qe8 {[%clk 0:02:54]} 17. Ba3 {[%clk 0:02:28]}  Qg6 {[%clk 0:02:48]} 18. Bd3 {[%clk 0:02:24]}  Qg5 {[%clk 0:02:37]} 19. Kh1 {[%clk 0:02:23]}  Ng4 {[%clk 0:02:21]} 20. Nxg4 {[%clk 0:02:22]}  Bxg4 {[%clk 0:02:21]} 21. f3 {[%clk 0:02:20]}  Bd7 {[%clk 0:02:16]} 22. Rc1 {[%clk 0:02:15]}  Rac8 {[%clk 0:02:11]} 23. Be4 {[%clk 0:02:06]}  Qh6 {[%clk 0:01:51]} 24. Qd3 {[%clk 0:01:50]}  Bg5 {[%clk 0:01:48]} 25. Rxc8 {[%clk 0:01:45]}  Rxc8 {[%clk 0:01:49]} 26. Bf5 {[%clk 0:01:39]}  Bf4 {[%clk 0:01:34]} 27. h3 {[%clk 0:01:34]}  Bxf5 {[%clk 0:00:53]} 28. Qxf5 {[%clk 0:01:32]}  Rf8 {[%clk 0:00:53]} 29. Qe6+ {[%clk 0:01:27]}  Qxe6 {[%clk 0:00:52]} 30. dxe6 {[%clk 0:01:27]}  Re8 {[%clk 0:00:53]} 31. Bxd6 {[%clk 0:01:22]}  Rxe6 {[%clk 0:00:53]} 32. Rd1 {[%clk 0:01:21]}  Kf7 {[%clk 0:00:51]} 33. Kg1 {[%clk 0:01:20]}  Re8 {[%clk 0:00:51]} 34. Bc5 {[%clk 0:01:10]}  Rc8 {[%clk 0:00:50]} 35. b4 {[%clk 0:01:08]}  Rc7 {[%clk 0:00:44]} 36. Kf2 {[%clk 0:01:07]}  a5 {[%clk 0:00:41]} 37. a3 {[%clk 0:01:01]}  axb4 {[%clk 0:00:39]} 38. axb4 {[%clk 0:01:01]}  Rc6 {[%clk 0:00:38]} 39. Rd7+ {[%clk 0:00:58]}  Kg6 {[%clk 0:00:34]} 40. g3 {[%clk 0:00:53]}  Bg5 {[%clk 0:00:33]} 41. Ke2 {[%clk 0:00:51]}  Ra6 {[%clk 0:00:31]} 42. h4 {[%clk 0:00:45]}  Ra2+ {[%clk 0:00:28]} 43. Kf1 {[%clk 0:00:40]}  Bh6 {[%clk 0:00:19]} 44. Rb7 {[%clk 0:00:36]}  Ra3 {[%clk 0:00:19]} 45. Kg2 {[%clk 0:00:35]}  Ra2+ {[%clk 0:00:18]} 46. Kh3 {[%clk 0:00:35]}  Kf5 {[%clk 0:00:17]} 47. Rxb5 {[%clk 0:00:29]}  g6 {[%clk 0:00:14]} 48. Bd4 {[%clk 0:00:24]}  Re2 {[%clk 0:00:14]} 49. f4 {[%clk 0:00:21]}  Bg7 {[%clk 0:00:14]} 50. Bxe5 {[%clk 0:00:20]}  Bf8 {[%clk 0:00:12]} 51. Rb8 {[%clk 0:00:18]}  Be7 {[%clk 0:00:11]} 52. b5 {[%clk 0:00:18]}  Ke4 {[%clk 0:00:10]} 53. Re8 {[%clk 0:00:16]}  Kf3 {[%clk 0:00:07]} 54. Rxe7 {[%clk 0:00:14]}  Re1 {[%clk 0:00:07]} 55. Kh2 {[%clk 0:00:13]}  Re2+ {[%clk 0:00:05]} 56. Kg1 {[%clk 0:00:12]}  Re1+ {[%clk 0:00:06]} 57. Kh2 {[%clk 0:00:12]}  Re2+ {[%clk 0:00:06]} 58. Kh3 {[%clk 0:00:12]}  Re1 {[%clk 0:00:06]} 59. Kh2 {[%clk 0:00:10]} 1/2-1/2


[Site "https://www.chess.com"]

[Event "Titled Tuesday Blitz July 13 2021"]
[White "Shevchenko, Kirill"]
[Black "Sonis, Francesco"]
[WhiteFideId "14129574"]
[BlackFideId "895733"]
[WhiteElo "2569"]
[BlackElo "2373"]
[Result "1-0"]
[Round "10"]
[TimeControl "180+1"]
[Date "2021.07.13"]
[WhiteClock "0:01:02"]
[BlackClock "0:00:56"]

1. d3 {[%clk 0:03:00]}  d5 {[%clk 0:02:57]} 2. Nd2 {[%clk 0:03:00]}  c6 {[%clk 0:02:55]} 3. e4 {[%clk 0:03:01]}  g6 {[%clk 0:02:55]} 4. g3 {[%clk 0:02:58]}  Bg7 {[%clk 0:02:55]} 5. Bg2 {[%clk 0:02:58]}  Nf6 {[%clk 0:02:52]} 6. Ngf3 {[%clk 0:02:58]}  O-O {[%clk 0:02:51]} 7. O-O {[%clk 0:02:59]}  e6 {[%clk 0:02:48]} 8. Re1 {[%clk 0:02:54]}  b6 {[%clk 0:02:48]} 9. e5 {[%clk 0:02:50]}  Nfd7 {[%clk 0:02:47]} 10. Nf1 {[%clk 0:02:50]}  c5 {[%clk 0:02:45]} 11. h4 {[%clk 0:02:49]}  Nc6 {[%clk 0:02:45]} 12. Bf4 {[%clk 0:02:49]}  h6 {[%clk 0:02:43]} 13. N1h2 {[%clk 0:02:43]}  Ne7 {[%clk 0:02:42]} 14. Ng4 {[%clk 0:02:27]}  Nf5 {[%clk 0:02:39]} 15. Qd2 {[%clk 0:02:27]}  Kh7 {[%clk 0:02:38]} 16. c4 {[%clk 0:02:16]}  Bb7 {[%clk 0:02:37]} 17. h5 {[%clk 0:02:15]}  gxh5 {[%clk 0:02:33]} 18. Ne3 {[%clk 0:02:03]}  Nxe3 {[%clk 0:02:19]} 19. Qxe3 {[%clk 0:02:03]}  d4 {[%clk 0:02:19]} 20. Qe2 {[%clk 0:02:00]}  Qc7 {[%clk 0:02:15]} 21. Nh4 {[%clk 0:01:57]}  Bxg2 {[%clk 0:02:13]} 22. Kxg2 {[%clk 0:01:58]}  Qc6+ {[%clk 0:02:09]} 23. Kg1 {[%clk 0:01:56]}  Rh8 {[%clk 0:01:57]} 24. Qxh5 {[%clk 0:01:55]}  Kg8 {[%clk 0:01:56]} 25. Nf3 {[%clk 0:01:45]}  Nf8 {[%clk 0:01:55]} 26. Re4 {[%clk 0:01:43]}  Ng6 {[%clk 0:01:54]} 27. Nh4 {[%clk 0:01:42]}  Kh7 {[%clk 0:01:51]} 28. Rae1 {[%clk 0:01:39]}  Rhg8 {[%clk 0:01:44]} 29. Bd2 {[%clk 0:01:33]}  Qe8 {[%clk 0:01:38]} 30. Rg4 {[%clk 0:01:28]}  Bf8 {[%clk 0:01:27]} 31. Ree4 {[%clk 0:01:27]}  a6 {[%clk 0:01:19]} 32. Nf3 {[%clk 0:01:27]}  Rh8 {[%clk 0:01:08]} 33. Ng5+ {[%clk 0:01:06]}  Kg7 {[%clk 0:01:07]} 34. Nxf7 {[%clk 0:01:06]}  Qxf7 {[%clk 0:01:05]} 35. Ref4 {[%clk 0:01:07]}  Rg8 {[%clk 0:00:59]} 36. Rxf7+ {[%clk 0:01:05]}  Kxf7 {[%clk 0:00:59]} 37. Bxh6 {[%clk 0:01:04]}  Bxh6 {[%clk 0:00:55]} 38. Qxh6 {[%clk 0:01:04]}  Rg7 {[%clk 0:00:56]} 39. Qg5 {[%clk 0:01:02]} 1-0


[Site "https://www.chess.com"]

[Event "Titled Tuesday Blitz July 13 2021"]
[White "Shuvalov, Evgenij"]
[Black "Hryshchenko, Kamila"]
[WhiteFideId "4187237"]
[BlackFideId "14147491"]
[WhiteElo "2163"]
[BlackElo "1966"]
[Result "0-1"]
[Round "10"]
[TimeControl "180+1"]
[Date "2021.07.13"]
[WhiteClock "0:00:55"]
[BlackClock "0:01:44"]

1. Nf3 {[%clk 0:03:00]}  f5 {[%clk 0:02:59]} 2. e4 {[%clk 0:02:58]}  fxe4 {[%clk 0:02:59]} 3. Ng5 {[%clk 0:02:58]}  Nf6 {[%clk 0:02:58]} 4. d3 {[%clk 0:02:58]}  e6 {[%clk 0:02:59]} 5. Nc3 {[%clk 0:02:56]}  Nc6 {[%clk 0:02:59]} 6. dxe4 {[%clk 0:02:50]}  Bc5 {[%clk 0:02:58]} 7. Bd3 {[%clk 0:02:44]}  O-O {[%clk 0:02:57]} 8. O-O {[%clk 0:02:43]}  Qe8 {[%clk 0:02:51]} 9. Kh1 {[%clk 0:02:25]}  h6 {[%clk 0:02:50]} 10. Nh3 {[%clk 0:02:11]}  Ne5 {[%clk 0:02:43]} 11. Be2 {[%clk 0:02:08]}  Ng6 {[%clk 0:02:22]} 12. f4 {[%clk 0:02:03]}  d6 {[%clk 0:02:19]} 13. Bd3 {[%clk 0:01:46]}  Bd7 {[%clk 0:02:15]} 14. Qe2 {[%clk 0:01:39]}  Bc6 {[%clk 0:01:53]} 15. e5 {[%clk 0:01:24]}  Nh4 {[%clk 0:01:53]} 16. Ne4 {[%clk 0:01:15]}  Nxe4 {[%clk 0:01:52]} 17. Bxe4 {[%clk 0:01:16]}  Bxe4 {[%clk 0:01:51]} 18. Qxe4 {[%clk 0:01:17]}  d5 {[%clk 0:01:51]} 19. Qe1 {[%clk 0:01:13]}  Nf5 {[%clk 0:01:49]} 20. g4 {[%clk 0:01:09]}  Nd4 {[%clk 0:01:49]} 21. Qd1 {[%clk 0:01:05]}  Qg6 {[%clk 0:01:49]} 22. Be3 {[%clk 0:01:01]}  Qe4+ {[%clk 0:01:48]} 23. Rf3 {[%clk 0:00:57]}  Nxf3 {[%clk 0:01:47]} 24. Bxc5 {[%clk 0:00:57]}  Ne1+ {[%clk 0:01:44]} 25. Kg1 {[%clk 0:00:55]}  Qg2# {[%clk 0:01:44]} 0-1


[Site "https://www.chess.com"]

[Event "Titled Tuesday Blitz July 13 2021"]
[White "Sjugirov, Sanan"]
[Black "Timofeev, Artyom"]
[WhiteFideId "4189302"]
[BlackFideId "4140419"]
[WhiteElo "2472"]
[BlackElo "2582"]
[Result "0-1"]
[Round "10"]
[TimeControl "180+1"]
[Date "2021.07.13"]
[WhiteClock "0:00:02"]
[BlackClock "0:00:56"]

1. e4 {[%clk 0:03:00]}  c5 {[%clk 0:02:59]} 2. Nf3 {[%clk 0:03:00]}  Nc6 {[%clk 0:02:59]} 3. Bb5 {[%clk 0:02:59]}  d6 {[%clk 0:02:58]} 4. O-O {[%clk 0:02:55]}  Bd7 {[%clk 0:02:58]} 5. Re1 {[%clk 0:02:55]}  a6 {[%clk 0:02:55]} 6. Bxc6 {[%clk 0:02:55]}  Bxc6 {[%clk 0:02:55]} 7. d4 {[%clk 0:02:55]}  cxd4 {[%clk 0:02:56]} 8. Nxd4 {[%clk 0:02:55]}  Rc8 {[%clk 0:02:56]} 9. c4 {[%clk 0:02:51]}  Nf6 {[%clk 0:02:55]} 10. Nc3 {[%clk 0:02:50]}  g6 {[%clk 0:02:55]} 11. f3 {[%clk 0:02:42]}  Bg7 {[%clk 0:02:54]} 12. Be3 {[%clk 0:02:42]}  O-O {[%clk 0:02:54]} 13. Qd2 {[%clk 0:02:37]}  Re8 {[%clk 0:02:51]} 14. Nxc6 {[%clk 0:02:29]}  Rxc6 {[%clk 0:02:50]} 15. b3 {[%clk 0:02:25]}  Qa5 {[%clk 0:02:37]} 16. Rac1 {[%clk 0:02:22]}  Rec8 {[%clk 0:02:36]} 17. Nd5 {[%clk 0:02:07]}  Qxd2 {[%clk 0:02:32]} 18. Bxd2 {[%clk 0:02:08]}  Kf8 {[%clk 0:02:30]} 19. Kf1 {[%clk 0:01:57]}  e6 {[%clk 0:02:26]} 20. Nb4 {[%clk 0:01:47]}  R6c7 {[%clk 0:02:17]} 21. Nd3 {[%clk 0:01:47]}  Nd7 {[%clk 0:02:07]} 22. Bb4 {[%clk 0:01:43]}  Nc5 {[%clk 0:01:56]} 23. Rcd1 {[%clk 0:01:42]}  b6 {[%clk 0:01:49]} 24. e5 {[%clk 0:01:24]}  dxe5 {[%clk 0:01:46]} 25. Nxe5 {[%clk 0:01:25]}  Ke8 {[%clk 0:01:45]} 26. Rd6 {[%clk 0:01:19]}  Rb7 {[%clk 0:01:29]} 27. Ng4 {[%clk 0:00:43]}  a5 {[%clk 0:01:20]} 28. Bxc5 {[%clk 0:00:33]}  Rxc5 {[%clk 0:01:17]} 29. Red1 {[%clk 0:00:31]}  Ke7 {[%clk 0:01:17]} 30. a4 {[%clk 0:00:27]}  Rcc7 {[%clk 0:01:08]} 31. Ke2 {[%clk 0:00:18]}  Rd7 {[%clk 0:01:06]} 32. Rxd7+ {[%clk 0:00:15]}  Rxd7 {[%clk 0:01:06]} 33. Rxd7+ {[%clk 0:00:15]}  Kxd7 {[%clk 0:01:06]} 34. Nf2 {[%clk 0:00:16]}  f5 {[%clk 0:01:02]} 35. g4 {[%clk 0:00:13]}  Bd4 {[%clk 0:01:00]} 36. Nd3 {[%clk 0:00:13]}  Kd6 {[%clk 0:01:00]} 37. h3 {[%clk 0:00:13]}  e5 {[%clk 0:00:59]} 38. gxf5 {[%clk 0:00:08]}  gxf5 {[%clk 0:00:59]} 39. Ne1 {[%clk 0:00:02]}  e4 {[%clk 0:00:55]} 40. fxe4 {[%clk 0:00:03]}  fxe4 {[%clk 0:00:55]} 41. Nc2 {[%clk 0:00:04]}  Bc5 {[%clk 0:00:56]} 42. Ne1 {[%clk 0:00:02]}  Ke5 {[%clk 0:00:56]} 0-1


[Site "https://www.chess.com"]

[Event "Titled Tuesday Blitz July 13 2021"]
[White "Skatchkov, Valery"]
[Black "Maksimovic, Bojan"]
[WhiteFideId "24195812"]
[BlackFideId "14408120"]
[WhiteElo "2199"]
[BlackElo "2439"]
[Result "0-1"]
[Round "10"]
[TimeControl "180+1"]
[Date "2021.07.13"]
[WhiteClock "0:00:05"]
[BlackClock "0:00:06"]

1. d4 {[%clk 0:02:53]}  Nf6 {[%clk 0:03:00]} 2. c4 {[%clk 0:02:53]}  c5 {[%clk 0:03:00]} 3. d5 {[%clk 0:02:53]}  b5 {[%clk 0:03:00]} 4. Nf3 {[%clk 0:02:53]}  Bb7 {[%clk 0:03:00]} 5. Qc2 {[%clk 0:02:49]}  bxc4 {[%clk 0:02:58]} 6. e4 {[%clk 0:02:43]}  e6 {[%clk 0:02:58]} 7. Bxc4 {[%clk 0:02:33]}  exd5 {[%clk 0:02:56]} 8. exd5 {[%clk 0:02:34]}  Bxd5 {[%clk 0:02:56]} 9. Bxd5 {[%clk 0:02:28]}  Nxd5 {[%clk 0:02:57]} 10. O-O {[%clk 0:02:29]}  Be7 {[%clk 0:02:33]} 11. Qe4 {[%clk 0:02:25]}  Nc7 {[%clk 0:02:24]} 12. Re1 {[%clk 0:02:25]}  Nc6 {[%clk 0:02:23]} 13. Bg5 {[%clk 0:02:18]}  Ne6 {[%clk 0:02:22]} 14. Bxe7 {[%clk 0:02:14]}  Qxe7 {[%clk 0:02:23]} 15. Nc3 {[%clk 0:02:15]}  O-O {[%clk 0:02:23]} 16. Rad1 {[%clk 0:02:14]}  Rfe8 {[%clk 0:02:02]} 17. Nd5 {[%clk 0:02:10]}  Qf8 {[%clk 0:02:01]} 18. Qg4 {[%clk 0:02:08]}  Kh8 {[%clk 0:02:01]} 19. h4 {[%clk 0:02:01]}  Ncd4 {[%clk 0:01:54]} 20. Nxd4 {[%clk 0:01:58]}  cxd4 {[%clk 0:01:45]} 21. h5 {[%clk 0:01:51]}  h6 {[%clk 0:01:43]} 22. Re5 {[%clk 0:01:47]}  Rac8 {[%clk 0:01:40]} 23. Rf5 {[%clk 0:01:47]}  Rc5 {[%clk 0:01:30]} 24. Qf3 {[%clk 0:01:42]}  Ng5 {[%clk 0:01:27]} 25. Qf4 {[%clk 0:01:07]}  Re4 {[%clk 0:01:23]} 26. Qg3 {[%clk 0:01:06]}  d6 {[%clk 0:01:12]} 27. b4 {[%clk 0:00:59]}  Rc2 {[%clk 0:01:03]} 28. Qd3 {[%clk 0:00:57]}  Ree2 {[%clk 0:00:57]} 29. Qxd4 {[%clk 0:00:56]}  Qc8 {[%clk 0:00:42]} 30. Ne3 {[%clk 0:00:33]}  Rxe3 {[%clk 0:00:09]} 31. Rxg5 {[%clk 0:00:32]}  hxg5 {[%clk 0:00:09]} 32. Qxe3 {[%clk 0:00:33]}  Qf5 {[%clk 0:00:04]} 33. Rxd6 {[%clk 0:00:30]}  Rxa2 {[%clk 0:00:04]} 34. Qd4 {[%clk 0:00:25]}  Kh7 {[%clk 0:00:03]} 35. h6 {[%clk 0:00:21]}  gxh6 {[%clk 0:00:03]} 36. Rd8 {[%clk 0:00:21]}  Qb1+ {[%clk 0:00:02]} 37. Kh2 {[%clk 0:00:21]}  Ra1 {[%clk 0:00:03]} 38. Rh8+ {[%clk 0:00:13]}  Kg6 {[%clk 0:00:03]} 39. Rg8+ {[%clk 0:00:14]}  Kf5 {[%clk 0:00:02]} 40. Qd5+ {[%clk 0:00:14]}  Kf6 {[%clk 0:00:02]} 41. Qd6+ {[%clk 0:00:07]}  Kf5 {[%clk 0:00:02]} 42. Re8 {[%clk 0:00:06]}  Qh1+ {[%clk 0:00:02]} 43. Kg3 {[%clk 0:00:06]}  Qh4+ {[%clk 0:00:03]} 44. Kf3 {[%clk 0:00:07]}  Qg4+ {[%clk 0:00:03]} 45. Ke3 {[%clk 0:00:07]}  Re1+ {[%clk 0:00:04]} 46. Kd3 {[%clk 0:00:06]}  Rd1+ {[%clk 0:00:05]} 47. Kc3 {[%clk 0:00:05]}  Rxd6 {[%clk 0:00:06]} 0-1


[Site "https://www.chess.com"]

[Event "Titled Tuesday Blitz July 13 2021"]
[White "Stocek, Jiri"]
[Black "Maly, Alexey"]
[WhiteFideId "304760"]
[BlackFideId "14103184"]
[WhiteElo "2409"]
[BlackElo "2285"]
[Result "1-0"]
[Round "10"]
[TimeControl "180+1"]
[Date "2021.07.13"]
[WhiteClock "0:00:48"]
[BlackClock "0:00:43"]

1. d4 {[%clk 0:02:30]}  d5 {[%clk 0:03:00]} 2. Nf3 {[%clk 0:02:30]}  Nf6 {[%clk 0:03:00]} 3. Bg5 {[%clk 0:02:29]}  Nbd7 {[%clk 0:02:59]} 4. e3 {[%clk 0:02:28]}  g6 {[%clk 0:02:59]} 5. c4 {[%clk 0:02:28]}  Bg7 {[%clk 0:02:59]} 6. Nc3 {[%clk 0:02:27]}  c6 {[%clk 0:02:59]} 7. Qb3 {[%clk 0:02:26]}  e6 {[%clk 0:02:55]} 8. Rc1 {[%clk 0:02:25]}  O-O {[%clk 0:02:55]} 9. Be2 {[%clk 0:02:24]}  b6 {[%clk 0:02:54]} 10. O-O {[%clk 0:02:23]}  Bb7 {[%clk 0:02:54]} 11. Rfd1 {[%clk 0:02:21]}  Rc8 {[%clk 0:02:52]} 12. h3 {[%clk 0:02:20]}  h6 {[%clk 0:02:52]} 13. Bf4 {[%clk 0:02:20]}  Qe7 {[%clk 0:02:51]} 14. Qa4 {[%clk 0:02:14]}  a6 {[%clk 0:02:50]} 15. Qc2 {[%clk 0:01:57]}  Rfd8 {[%clk 0:02:45]} 16. e4 {[%clk 0:01:53]}  dxe4 {[%clk 0:02:42]} 17. Nxe4 {[%clk 0:01:52]}  Nxe4 {[%clk 0:02:40]} 18. Qxe4 {[%clk 0:01:51]}  Nf6 {[%clk 0:02:40]} 19. Qe3 {[%clk 0:01:50]}  c5 {[%clk 0:02:38]} 20. d5 {[%clk 0:01:39]}  Re8 {[%clk 0:02:13]} 21. d6 {[%clk 0:01:35]}  Qd8 {[%clk 0:02:09]} 22. Bxh6 {[%clk 0:01:35]}  Bxh6 {[%clk 0:01:57]} 23. Qxh6 {[%clk 0:01:34]}  Bxf3 {[%clk 0:01:57]} 24. Bxf3 {[%clk 0:01:33]}  Nd7 {[%clk 0:01:58]} 25. Bb7 {[%clk 0:01:30]}  Rb8 {[%clk 0:01:58]} 26. Bxa6 {[%clk 0:01:30]}  Ra8 {[%clk 0:01:58]} 27. Bb5 {[%clk 0:01:29]}  Rxa2 {[%clk 0:01:58]} 28. Rc3 {[%clk 0:01:21]}  Rxb2 {[%clk 0:01:46]} 29. Rg3 {[%clk 0:01:21]}  Rf8 {[%clk 0:01:17]} 30. Bxd7 {[%clk 0:00:56]}  Qxd7 {[%clk 0:01:16]} 31. Rg4 {[%clk 0:00:56]}  Ra2 {[%clk 0:00:45]} 32. Rh4 {[%clk 0:00:52]}  f6 {[%clk 0:00:45]} 33. Qh8+ {[%clk 0:00:51]}  Kf7 {[%clk 0:00:44]} 34. Rh7+ {[%clk 0:00:49]}  Ke8 {[%clk 0:00:43]} 35. Qxf8+ {[%clk 0:00:48]}  Kxf8 {[%clk 0:00:43]} 36. Rxd7 {[%clk 0:00:48]} 1-0


[Site "https://www.chess.com"]

[Event "Titled Tuesday Blitz July 13 2021"]
[White "Terry, Renato"]
[Black "Holt, Conrad"]
[WhiteFideId "3803457"]
[BlackFideId "2034387"]
[WhiteElo "2581"]
[BlackElo "2586"]
[Result "1/2-1/2"]
[Round "10"]
[TimeControl "180+1"]
[Date "2021.07.13"]
[WhiteClock "0:00:07"]
[BlackClock "0:00:11"]

1. d4 {[%clk 0:03:00]}  d5 {[%clk 0:02:56]} 2. Bg5 {[%clk 0:02:59]}  h6 {[%clk 0:02:54]} 3. Bh4 {[%clk 0:02:59]}  Nf6 {[%clk 0:02:52]} 4. Bxf6 {[%clk 0:02:56]}  exf6 {[%clk 0:02:52]} 5. e3 {[%clk 0:02:56]}  Be6 {[%clk 0:02:48]} 6. g3 {[%clk 0:02:43]}  c5 {[%clk 0:02:45]} 7. c3 {[%clk 0:02:42]}  Qb6 {[%clk 0:02:43]} 8. Qb3 {[%clk 0:02:42]}  Nc6 {[%clk 0:02:41]} 9. Nd2 {[%clk 0:02:37]}  Bd6 {[%clk 0:02:29]} 10. Ne2 {[%clk 0:02:09]}  O-O {[%clk 0:02:24]} 11. Bg2 {[%clk 0:01:55]}  c4 {[%clk 0:02:16]} 12. Qxb6 {[%clk 0:01:52]}  axb6 {[%clk 0:02:16]} 13. a3 {[%clk 0:01:53]}  b5 {[%clk 0:02:08]} 14. Rc1 {[%clk 0:01:53]}  Rfe8 {[%clk 0:01:58]} 15. O-O {[%clk 0:01:50]}  Ne7 {[%clk 0:01:30]} 16. e4 {[%clk 0:01:39]}  Nc8 {[%clk 0:01:15]} 17. Rfe1 {[%clk 0:01:14]}  Nb6 {[%clk 0:01:13]} 18. f4 {[%clk 0:01:15]}  f5 {[%clk 0:01:02]} 19. e5 {[%clk 0:01:05]}  Be7 {[%clk 0:01:01]} 20. Nf1 {[%clk 0:01:03]}  g5 {[%clk 0:00:28]} 21. fxg5 {[%clk 0:00:56]}  Bxg5 {[%clk 0:00:24]} 22. Nf4 {[%clk 0:00:56]}  Kh7 {[%clk 0:00:15]} 23. Ne3 {[%clk 0:00:53]}  Bxf4 {[%clk 0:00:15]} 24. gxf4 {[%clk 0:00:54]}  Rg8 {[%clk 0:00:14]} 25. Kf2 {[%clk 0:00:54]}  Rg6 {[%clk 0:00:13]} 26. Bh3 {[%clk 0:00:22]}  Rag8 {[%clk 0:00:11]} 27. Rg1 {[%clk 0:00:22]}  Rxg1 {[%clk 0:00:10]} 28. Rxg1 {[%clk 0:00:23]}  Rxg1 {[%clk 0:00:10]} 29. Kxg1 {[%clk 0:00:24]}  Kg6 {[%clk 0:00:08]} 30. Kf2 {[%clk 0:00:22]}  Na4 {[%clk 0:00:08]} 31. Nd1 {[%clk 0:00:23]}  f6 {[%clk 0:00:08]} 32. Ke3 {[%clk 0:00:11]}  Kf7 {[%clk 0:00:06]} 33. Kd2 {[%clk 0:00:09]}  Ke7 {[%clk 0:00:06]} 34. Kc2 {[%clk 0:00:07]}  Kf7 {[%clk 0:00:02]} 35. Ne3 {[%clk 0:00:07]}  Kg6 {[%clk 0:00:03]} 36. Kc1 {[%clk 0:00:06]}  Nb6 {[%clk 0:00:02]} 37. Bg2 {[%clk 0:00:03]}  Na4 {[%clk 0:00:02]} 38. Kc2 {[%clk 0:00:04]}  fxe5 {[%clk 0:00:03]} 39. dxe5 {[%clk 0:00:04]}  Nb6 {[%clk 0:00:02]} 40. Kd2 {[%clk 0:00:04]}  Kf7 {[%clk 0:00:02]} 41. Nc2 {[%clk 0:00:04]}  Na4 {[%clk 0:00:02]} 42. Nd4 {[%clk 0:00:05]}  Nxb2 {[%clk 0:00:02]} 43. Nxb5 {[%clk 0:00:05]}  Ke7 {[%clk 0:00:03]} 44. Nd4 {[%clk 0:00:05]}  Na4 {[%clk 0:00:03]} 45. Bh3 {[%clk 0:00:04]}  Nc5 {[%clk 0:00:03]} 46. Bxf5 {[%clk 0:00:04]}  Bf7 {[%clk 0:00:02]} 47. Bc2 {[%clk 0:00:03]}  Bh5 {[%clk 0:00:02]} 48. Ke3 {[%clk 0:00:04]}  Nd7 {[%clk 0:00:02]} 49. Nf5+ {[%clk 0:00:04]}  Kf8 {[%clk 0:00:02]} 50. Nxh6 {[%clk 0:00:05]}  Nc5 {[%clk 0:00:01]} 51. Nf5 {[%clk 0:00:05]}  Ne6 {[%clk 0:00:02]} 52. Nd4 {[%clk 0:00:05]}  Nc5 {[%clk 0:00:02]} 53. f5 {[%clk 0:00:05]}  Be8 {[%clk 0:00:02]} 54. f6 {[%clk 0:00:06]}  Nd7 {[%clk 0:00:02]} 55. e6 {[%clk 0:00:05]}  Nxf6 {[%clk 0:00:02]} 56. Kf4 {[%clk 0:00:05]}  Ke7 {[%clk 0:00:02]} 57. Ke5 {[%clk 0:00:06]}  Ng4+ {[%clk 0:00:02]} 58. Kxd5 {[%clk 0:00:05]}  Ne3+ {[%clk 0:00:03]} 59. Ke5 {[%clk 0:00:04]}  Ng4+ {[%clk 0:00:03]} 60. Kf4 {[%clk 0:00:05]}  Nxh2 {[%clk 0:00:03]} 61. Be4 {[%clk 0:00:05]}  b6 {[%clk 0:00:03]} 62. Bg2 {[%clk 0:00:05]}  Bh5 {[%clk 0:00:02]} 63. Kg3 {[%clk 0:00:05]}  Ng4 {[%clk 0:00:02]} 64. Kf4 {[%clk 0:00:02]}  Nf2 {[%clk 0:00:01]} 65. Ke5 {[%clk 0:00:02]}  Nd3+ {[%clk 0:00:02]} 66. Kf5 {[%clk 0:00:02]}  Nb2 {[%clk 0:00:02]} 67. Nc6+ {[%clk 0:00:03]}  Kd6 {[%clk 0:00:03]} 68. Nd4 {[%clk 0:00:03]}  Be8 {[%clk 0:00:03]} 69. Kf6 {[%clk 0:00:03]}  Na4 {[%clk 0:00:03]} 70. Nf5+ {[%clk 0:00:04]}  Kc5 {[%clk 0:00:03]} 71. Ng7 {[%clk 0:00:04]}  Bb5 {[%clk 0:00:04]} 72. e7 {[%clk 0:00:04]}  Nxc3 {[%clk 0:00:04]} 73. Bf3 {[%clk 0:00:03]}  Nd5+ {[%clk 0:00:04]} 74. Bxd5 {[%clk 0:00:02]}  Kxd5 {[%clk 0:00:05]} 75. Ne6 {[%clk 0:00:03]}  Bd7 {[%clk 0:00:05]} 76. Nf4+ {[%clk 0:00:01]}  Kd4 {[%clk 0:00:05]} 77. Ne6+ {[%clk 0:00:02]}  Ke3 {[%clk 0:00:05]} 78. Nf8 {[%clk 0:00:01]}  Be8 {[%clk 0:00:05]} 79. Ke6 {[%clk 0:00:01]}  c3 {[%clk 0:00:05]} 80. Nd7 {[%clk 0:00:02]}  c2 {[%clk 0:00:05]} 81. Nf6 {[%clk 0:00:03]}  Bc6 {[%clk 0:00:05]} 82. Kd6 {[%clk 0:00:03]}  Ba4 {[%clk 0:00:04]} 83. Nd5+ {[%clk 0:00:03]}  Kd2 {[%clk 0:00:05]} 84. Nxb6 {[%clk 0:00:04]}  c1=Q {[%clk 0:00:04]} 85. Nxa4 {[%clk 0:00:04]}  Qxa3+ {[%clk 0:00:05]} 86. Nc5 {[%clk 0:00:05]}  Qg3+ {[%clk 0:00:04]} 87. Kd7 {[%clk 0:00:04]}  Qg4+ {[%clk 0:00:04]} 88. Ne6 {[%clk 0:00:04]}  Qa4+ {[%clk 0:00:04]} 89. Kd8 {[%clk 0:00:04]}  Qa8+ {[%clk 0:00:05]} 90. Kd7 {[%clk 0:00:04]}  Qd5+ {[%clk 0:00:05]} 91. Ke8 {[%clk 0:00:01]}  Qxe6 {[%clk 0:00:06]} 92. Kf8 {[%clk 0:00:02]}  Qf6+ {[%clk 0:00:06]} 93. Ke8 {[%clk 0:00:02]}  Ke3 {[%clk 0:00:07]} 94. Kd7 {[%clk 0:00:03]}  Qd4+ {[%clk 0:00:07]} 95. Ke6 {[%clk 0:00:03]}  Qe4+ {[%clk 0:00:07]} 96. Kf7 {[%clk 0:00:04]}  Qf5+ {[%clk 0:00:07]} 97. Kg7 {[%clk 0:00:05]}  Qe6 {[%clk 0:00:08]} 98. Kf8 {[%clk 0:00:05]}  Qf6+ {[%clk 0:00:08]} 99. Kg8 {[%clk 0:00:06]}  Ke4 {[%clk 0:00:09]} 100. e8=Q+ {[%clk 0:00:06]}  Kf5 {[%clk 0:00:10]} 101. Qf7 {[%clk 0:00:07]}  Kg5 {[%clk 0:00:10]} 102. Qxf6+ {[%clk 0:00:07]}  Kxf6 {[%clk 0:00:11]} 1/2-1/2


[Site "https://www.chess.com"]